[Event "*** SCC Grand Prix: Titled Tuesday Blitz"]
[Site "Chess.com"]
[Date "2020.06.23"]
[Round "3"]
[White "OparinGrigoriy"]
[Black "Airquake"]
[Result "1-0"]
[WhiteElo "2910"]
[BlackElo "2666"]
[TimeControl "180+1"]
[EndTime "10:28:10 PDT"]
[Termination "OparinGrigoriy won by resignation"]

1. d4 {[%clk 0:03:00.9]} 1... Nf6 {[%clk 0:02:58]} 2. c4 {[%clk 0:03:01.4]} 2...
e6 {[%clk 0:02:58.6]} 3. Nf3 {[%clk 0:03:01.6]} 3... d5 {[%clk 0:02:58]} 4. g3
{[%clk 0:03:01.7]} 4... Be7 {[%clk 0:02:57.9]} 5. Bg2 {[%clk 0:03:00.8]} 5...
O-O {[%clk 0:02:57.1]} 6. Nc3 {[%clk 0:03:01.5]} 6... b6 {[%clk 0:02:57.4]} 7.
cxd5 {[%clk 0:03:01.3]} 7... exd5 {[%clk 0:02:57.1]} 8. O-O {[%clk 0:03:01.1]}
8... Bb7 {[%clk 0:02:57.5]} 9. Bf4 {[%clk 0:03:01.8]} 9... Na6 {[%clk
0:02:50.5]} 10. Ne5 {[%clk 0:02:59.2]} 10... c6 {[%clk 0:02:41.8]} 11. a3 {[%clk
0:02:57.8]} 11... h6 {[%clk 0:02:41.2]} 12. b4 {[%clk 0:02:56.5]} 12... Nc7
{[%clk 0:02:39.7]} 13. Qb3 {[%clk 0:02:51.3]} 13... Ne6 {[%clk 0:02:39.1]} 14.
Rfd1 {[%clk 0:02:51.8]} 14... Nxf4 {[%clk 0:02:23.9]} 15. gxf4 {[%clk
0:02:52.7]} 15... Bd6 {[%clk 0:02:24.2]} 16. b5 {[%clk 0:02:49.6]} 16... cxb5
{[%clk 0:02:16.2]} 17. Nxd5 {[%clk 0:02:34.9]} 17... Nxd5 {[%clk 0:02:00.2]} 18.
Bxd5 {[%clk 0:02:35.8]} 18... Bxd5 {[%clk 0:02:00.4]} 19. Qxd5 {[%clk
0:02:36.2]} 19... a6 {[%clk 0:02:00.5]} 20. Rac1 {[%clk 0:02:28.2]} 20... Bxa3
{[%clk 0:01:54]} 21. Qxd8 {[%clk 0:02:17]} 21... Rfxd8 {[%clk 0:01:46.1]} 22.
Rc6 {[%clk 0:02:17.4]} 22... Rab8 {[%clk 0:01:34.4]} 23. d5 {[%clk 0:02:12.1]}
23... Bd6 {[%clk 0:01:21.2]} 24. e4 {[%clk 0:02:12.1]} 24... a5 {[%clk
0:01:20.7]} 25. Nd3 {[%clk 0:02:10.4]} 25... Bf8 {[%clk 0:01:15.8]} 26. Ne5
{[%clk 0:01:54.5]} 26... b4 {[%clk 0:01:13.2]} 27. d6 {[%clk 0:01:51.8]} 27...
b3 {[%clk 0:01:07.2]} 28. d7 {[%clk 0:01:44.3]} 28... f6 {[%clk 0:00:55.7]} 29.
Nc4 {[%clk 0:01:39]} 29... Bc5 {[%clk 0:00:55.7]} 30. e5 {[%clk 0:01:34.1]}
30... fxe5 {[%clk 0:00:46.7]} 31. fxe5 {[%clk 0:01:35]} 31... a4 {[%clk
0:00:44.1]} 32. e6 {[%clk 0:01:33.9]} 32... Be7 {[%clk 0:00:42.1]} 33. Ne5
{[%clk 0:01:22.8]} 33... b2 {[%clk 0:00:35.8]} 34. Rc2 {[%clk 0:00:59.9]} 34...
a3 {[%clk 0:00:33.8]} 35. Nc6 {[%clk 0:01:00.1]} 35... Ra8 {[%clk 0:00:06]} 36.
Nxe7+ {[%clk 0:00:57.9]} 36... Kh7 {[%clk 0:00:06.1]} 37. Nc6 {[%clk 0:00:57.4]}
37... Rf8 {[%clk 0:00:02.6]} 38. e7 {[%clk 0:00:55.1]} 1-0

[Event "*** SCC Grand Prix: Titled Tuesday Blitz"]
[Site "Chess.com"]
[Date "2020.06.23"]
[Round "3"]
[White "Dedic8"]
[Black "Siniauski"]
[Result "1-0"]
[WhiteElo "2762"]
[BlackElo "2499"]
[TimeControl "180+1"]
[EndTime "10:28:11 PDT"]
[Termination "Dedic8 won by resignation"]

1. e4 {[%clk 0:03:00.9]} 1... e6 {[%clk 0:02:59.6]} 2. d4 {[%clk 0:03:00.8]}
2... d5 {[%clk 0:03:00.1]} 3. Nc3 {[%clk 0:03:01.5]} 3... Nf6 {[%clk 0:03:00.1]}
4. Bg5 {[%clk 0:03:00.5]} 4... Bb4 {[%clk 0:02:59.1]} 5. e5 {[%clk 0:02:58]}
5... h6 {[%clk 0:02:59.5]} 6. Be3 {[%clk 0:02:57.2]} 6... Ne4 {[%clk 0:02:57.4]}
7. a3 {[%clk 0:02:48.7]} 7... Nxc3 {[%clk 0:02:53.9]} 8. Qd2 {[%clk 0:02:47.3]}
8... Be7 {[%clk 0:02:48.8]} 9. Qxc3 {[%clk 0:02:41.3]} 9... c5 {[%clk
0:02:44.3]} 10. dxc5 {[%clk 0:02:39.4]} 10... Nc6 {[%clk 0:02:44.6]} 11. Nf3
{[%clk 0:02:38.3]} 11... g5 {[%clk 0:02:33.8]} 12. h3 {[%clk 0:02:32.6]} 12...
h5 {[%clk 0:02:19.3]} 13. Be2 {[%clk 0:02:14.6]} 13... Rg8 {[%clk 0:02:18.2]}
14. Nd4 {[%clk 0:02:12.2]} 14... Nxe5 {[%clk 0:02:03]} 15. Nxe6 {[%clk
0:02:05.8]} 15... Bxe6 {[%clk 0:02:01.5]} 16. Qxe5 {[%clk 0:02:05.8]} 16... Bf6
{[%clk 0:02:01.4]} 17. Qg3 {[%clk 0:01:50]} 17... Bxb2 {[%clk 0:01:57.6]} 18.
O-O {[%clk 0:01:48.7]} 18... Bxa1 {[%clk 0:01:55.6]} 19. Rxa1 {[%clk 0:01:49.6]}
19... h4 {[%clk 0:01:43.3]} 20. Qe5 {[%clk 0:01:44.3]} 20... Rc8 {[%clk
0:01:32.1]} 21. Rb1 {[%clk 0:01:16.3]} 21... Qc7 {[%clk 0:01:24.9]} 22. Qf6
{[%clk 0:01:16.6]} 22... Rg6 {[%clk 0:01:18]} 23. Qh8+ {[%clk 0:01:10.1]} 23...
Ke7 {[%clk 0:01:14.7]} 24. Qd4 {[%clk 0:01:06.6]} 24... Rcg8 {[%clk 0:00:57.1]}
25. Qb4 {[%clk 0:01:06.2]} 25... g4 {[%clk 0:00:29]} 26. c6+ {[%clk 0:01:06.1]}
26... Kf6 {[%clk 0:00:13.9]} 27. cxb7 {[%clk 0:01:05.4]} 27... gxh3 {[%clk
0:00:11.5]} 28. Qxh4+ {[%clk 0:01:05]} 28... Kg7 {[%clk 0:00:02.2]} 29. g3
{[%clk 0:01:05.1]} 29... Rh8 {[%clk 0:00:01.8]} 30. Bd4+ {[%clk 0:01:00.2]}
30... f6 {[%clk 0:00:01.7]} 31. Qxh8+ {[%clk 0:01:00.9]} 31... Kxh8 {[%clk
0:00:02.1]} 32. b8=Q+ {[%clk 0:01:01.8]} 32... Qxb8 {[%clk 0:00:02.7]} 33. Rxb8+
{[%clk 0:01:02.6]} 33... Kg7 {[%clk 0:00:03.4]} 34. Rb7+ {[%clk 0:01:01.4]}
34... Kh6 {[%clk 0:00:03.9]} 35. Bd3 {[%clk 0:01:00.9]} 35... Rg4 {[%clk
0:00:02.9]} 36. Rh7+ {[%clk 0:00:59.5]} 36... Kg5 {[%clk 0:00:03.5]} 37. Be3+
{[%clk 0:00:59.7]} 1-0

[Event "*** SCC Grand Prix: Titled Tuesday Blitz"]
[Site "Chess.com"]
[Date "2020.06.23"]
[Round "3"]
[White "Camels1981"]
[Black "Balla_Tamas"]
[Result "0-1"]
[WhiteElo "2315"]
[BlackElo "2519"]
[TimeControl "180+1"]
[EndTime "10:28:12 PDT"]
[Termination "Balla_Tamas won on time"]

1. e4 {[%clk 0:03:00.9]} 1... d5 {[%clk 0:02:58.7]} 2. exd5 {[%clk 0:02:59.8]}
2... Qxd5 {[%clk 0:02:59.3]} 3. Nc3 {[%clk 0:02:59.7]} 3... Qd6 {[%clk
0:02:59.3]} 4. d4 {[%clk 0:02:59.3]} 4... c6 {[%clk 0:02:59.7]} 5. Bc4 {[%clk
0:02:45.1]} 5... Nf6 {[%clk 0:02:58.8]} 6. Nge2 {[%clk 0:02:44.8]} 6... Bf5
{[%clk 0:02:54.9]} 7. O-O {[%clk 0:02:36.9]} 7... e6 {[%clk 0:02:53.8]} 8. Bf4
{[%clk 0:02:35.2]} 8... Qb4 {[%clk 0:02:53.2]} 9. Bb3 {[%clk 0:02:22.3]} 9...
Nbd7 {[%clk 0:02:53]} 10. a3 {[%clk 0:02:03.5]} 10... Qa5 {[%clk 0:02:51]} 11.
Ng3 {[%clk 0:01:53.5]} 11... Bg6 {[%clk 0:02:50.3]} 12. Re1 {[%clk 0:01:52.9]}
12... Be7 {[%clk 0:02:50.3]} 13. Nce4 {[%clk 0:01:44.6]} 13... O-O {[%clk
0:02:43.8]} 14. c3 {[%clk 0:01:38.4]} 14... Nd5 {[%clk 0:02:39.7]} 15. Bd6
{[%clk 0:01:25.8]} 15... Bxd6 {[%clk 0:02:38.9]} 16. Nxd6 {[%clk 0:01:25.9]}
16... Qc7 {[%clk 0:02:39.4]} 17. Nc4 {[%clk 0:01:21.1]} 17... c5 {[%clk
0:02:35.6]} 18. Ne5 {[%clk 0:01:17.3]} 18... Nxe5 {[%clk 0:02:35.6]} 19. Rxe5
{[%clk 0:01:12.8]} 19... c4 {[%clk 0:02:30]} 20. Bc2 {[%clk 0:01:08]} 20... Bxc2
{[%clk 0:02:28.2]} 21. Qxc2 {[%clk 0:01:07.8]} 21... b5 {[%clk 0:02:28.6]} 22.
h4 {[%clk 0:00:55.9]} 22... a5 {[%clk 0:02:27.7]} 23. Ne4 {[%clk 0:00:33.5]}
23... b4 {[%clk 0:02:24.3]} 24. Ng5 {[%clk 0:00:30.4]} 24... g6 {[%clk
0:02:16.7]} 25. h5 {[%clk 0:00:30.1]} 25... bxc3 {[%clk 0:02:06.1]} 26. hxg6
{[%clk 0:00:20]} 26... hxg6 {[%clk 0:02:04.1]} 27. bxc3 {[%clk 0:00:11.7]} 27...
Kg7 {[%clk 0:01:57.9]} 28. Rxe6 {[%clk 0:00:11.4]} 28... Qf4 {[%clk 0:01:53.2]}
29. Re5 {[%clk 0:00:08]} 29... Rh8 {[%clk 0:01:52.7]} 30. g3 {[%clk 0:00:07.5]}
30... Qg4 {[%clk 0:01:48.2]} 31. Qe2 {[%clk 0:00:03.5]} 31... Qxe2 {[%clk
0:01:46.8]} 32. Rxe2 {[%clk 0:00:03.3]} 32... Nxc3 {[%clk 0:01:47.4]} 33. Rc2
{[%clk 0:00:03.2]} 33... Nd5 {[%clk 0:01:45.3]} 34. Rxc4 {[%clk 0:00:03.1]}
34... Rh5 {[%clk 0:01:45.4]} 35. Nf3 {[%clk 0:00:02.2]} 35... Rah8 {[%clk
0:01:44.2]} 36. Kg2 {[%clk 0:00:02.2]} 36... Nf6 {[%clk 0:01:43]} 37. Rc5 {[%clk
0:00:02.3]} 37... Rd5 {[%clk 0:01:41.4]} 38. Rxd5 {[%clk 0:00:01.8]} 38... Nxd5
{[%clk 0:01:41.3]} 39. Rc1 {[%clk 0:00:02.2]} 39... Rd8 {[%clk 0:01:40.1]} 40.
Rc5 {[%clk 0:00:02.3]} 40... a4 {[%clk 0:01:40.7]} 41. Ra5 {[%clk 0:00:02.3]}
41... Nb6 {[%clk 0:01:40.3]} 42. Ra6 {[%clk 0:00:02]} 42... Rd6 {[%clk
0:01:38.2]} 43. Kf1 {[%clk 0:00:01.9]} 43... Rf6 {[%clk 0:01:37.3]} 44. Ke2
{[%clk 0:00:02.1]} 44... Nc4 {[%clk 0:01:35.7]} 45. Rxf6 {[%clk 0:00:01]} 45...
Kxf6 {[%clk 0:01:35.2]} 46. Kd3 {[%clk 0:00:01.2]} 46... Nxa3 {[%clk 0:01:35.6]}
47. Nd2 {[%clk 0:00:01.6]} 47... Nb5 {[%clk 0:01:35.4]} 48. Kc4 {[%clk
0:00:01.6]} 48... Nd6+ {[%clk 0:01:35.1]} 49. Kb4 {[%clk 0:00:01.7]} 49... Nf5
{[%clk 0:01:35]} 0-1

[Event "*** SCC Grand Prix: Titled Tuesday Blitz"]
[Site "Chess.com"]
[Date "2020.06.23"]
[Round "3"]
[White "HanSchut"]
[Black "Schandenfreude"]
[Result "0-1"]
[WhiteElo "2206"]
[BlackElo "2515"]
[TimeControl "180+1"]
[EndTime "10:28:13 PDT"]
[Termination "Schandenfreude won by resignation"]

1. e4 {[%clk 0:03:00.9]} 1... e6 {[%clk 0:02:59.5]} 2. d4 {[%clk 0:03:00.5]}
2... d5 {[%clk 0:02:59.3]} 3. Nd2 {[%clk 0:03:01]} 3... dxe4 {[%clk 0:02:59.4]}
4. Nxe4 {[%clk 0:03:00.8]} 4... Bd7 {[%clk 0:03:00.3]} 5. Bd3 {[%clk 0:03:00.4]}
5... Bc6 {[%clk 0:03:00.3]} 6. Nf3 {[%clk 0:02:58.1]} 6... Nd7 {[%clk
0:03:00.4]} 7. Qe2 {[%clk 0:02:58.1]} 7... Ngf6 {[%clk 0:03:00]} 8. Ng3 {[%clk
0:02:57.3]} 8... Be7 {[%clk 0:02:56.1]} 9. b3 {[%clk 0:02:56.4]} 9... O-O {[%clk
0:02:54.7]} 10. Bb2 {[%clk 0:02:56.8]} 10... Bxf3 {[%clk 0:02:54.7]} 11. Qxf3
{[%clk 0:02:56.4]} 11... c6 {[%clk 0:02:55.6]} 12. O-O-O {[%clk 0:02:54]} 12...
Qa5 {[%clk 0:02:49.2]} 13. Kb1 {[%clk 0:02:52.8]} 13... Ba3 {[%clk 0:02:47.5]}
14. Bc3 {[%clk 0:02:35]} 14... Bb4 {[%clk 0:02:47.1]} 15. Bb2 {[%clk 0:02:34.8]}
15... Nd5 {[%clk 0:02:45.3]} 16. a4 {[%clk 0:02:12.3]} 16... b5 {[%clk
0:02:30.5]} 17. c4 {[%clk 0:01:31.9]} 17... bxc4 {[%clk 0:02:24.6]} 18. Bxc4
{[%clk 0:01:32.1]} 18... N7b6 {[%clk 0:02:14.3]} 19. Bd3 {[%clk 0:01:24.2]}
19... Rab8 {[%clk 0:02:11.1]} 20. Ne4 {[%clk 0:01:20.3]} 20... Nxa4 {[%clk
0:02:03.2]} 21. Ng5 {[%clk 0:01:14.8]} 21... Nac3+ {[%clk 0:01:46]} 22. Kc2
{[%clk 0:01:11.2]} 22... h6 {[%clk 0:01:07.4]} 23. Ra1 {[%clk 0:01:04.8]} 23...
Qb6 {[%clk 0:00:59.3]} 24. h4 {[%clk 0:01:03.8]} 24... Be7 {[%clk 0:00:42]} 25.
Bc4 {[%clk 0:00:47.6]} 25... Nb5 {[%clk 0:00:37.9]} 26. Qd3 {[%clk 0:00:40.1]}
26... Nb4+ {[%clk 0:00:23.9]} 27. Kd2 {[%clk 0:00:39.7]} 27... Nxd3 {[%clk
0:00:24]} 28. Bxd3 {[%clk 0:00:40.6]} 28... Nxd4 {[%clk 0:00:22.8]} 29. Bc3
{[%clk 0:00:31.4]} 29... Nxb3+ {[%clk 0:00:22.5]} 30. Kc2 {[%clk 0:00:30.6]}
30... Nxa1+ {[%clk 0:00:22.4]} 31. Rxa1 {[%clk 0:00:29.3]} 31... Qxf2+ {[%clk
0:00:22.5]} 0-1

[Event "*** SCC Grand Prix: Titled Tuesday Blitz"]
[Site "Chess.com"]
[Date "2020.06.23"]
[Round "3"]
[White "ajian"]
[Black "swisspower96"]
[Result "0-1"]
[WhiteElo "2402"]
[BlackElo "2612"]
[TimeControl "180+1"]
[EndTime "10:28:14 PDT"]
[Termination "swisspower96 won by resignation"]

1. d4 {[%clk 0:03:00.9]} 1... Nf6 {[%clk 0:02:59.7]} 2. c4 {[%clk 0:03:00.9]}
2... e6 {[%clk 0:03:00.1]} 3. Nc3 {[%clk 0:03:00.1]} 3... Bb4 {[%clk 0:02:59.7]}
4. Qc2 {[%clk 0:03:00.4]} 4... O-O {[%clk 0:02:58.9]} 5. a3 {[%clk 0:03:00.5]}
5... Bxc3+ {[%clk 0:02:58.6]} 6. Qxc3 {[%clk 0:03:01.4]} 6... d5 {[%clk
0:02:59.1]} 7. Nf3 {[%clk 0:03:00.7]} 7... dxc4 {[%clk 0:02:54.2]} 8. Qxc4
{[%clk 0:03:01.6]} 8... b6 {[%clk 0:02:53.7]} 9. Bg5 {[%clk 0:03:01.5]} 9... Bb7
{[%clk 0:02:39.4]} 10. Rc1 {[%clk 0:02:40]} 10... c5 {[%clk 0:02:33.9]} 11. dxc5
{[%clk 0:02:36.3]} 11... h6 {[%clk 0:02:30.8]} 12. Bh4 {[%clk 0:02:29.2]} 12...
bxc5 {[%clk 0:02:19.6]} 13. e3 {[%clk 0:02:16.8]} 13... Nbd7 {[%clk 0:02:18.4]}
14. Be2 {[%clk 0:02:13.8]} 14... Bd5 {[%clk 0:02:04.9]} 15. Qc2 {[%clk
0:02:11.6]} 15... Qa5+ {[%clk 0:01:57.7]} 16. Qc3 {[%clk 0:01:56]} 16... Qb6
{[%clk 0:01:56.2]} 17. O-O {[%clk 0:01:51.2]} 17... Rab8 {[%clk 0:01:55.2]} 18.
Bg3 {[%clk 0:01:43.6]} 18... Ne4 {[%clk 0:01:54.7]} 19. Qd3 {[%clk 0:00:59]}
19... Nxg3 {[%clk 0:01:42.1]} 20. hxg3 {[%clk 0:00:59.9]} 20... Qxb2 {[%clk
0:01:41.3]} 21. Nd2 {[%clk 0:00:52.6]} 21... Ne5 {[%clk 0:01:34.1]} 22. Qc2
{[%clk 0:00:46.2]} 22... Rfc8 {[%clk 0:01:10.5]} 23. f4 {[%clk 0:00:30.3]} 23...
Nd7 {[%clk 0:01:00.1]} 24. e4 {[%clk 0:00:29]} 24... Qd4+ {[%clk 0:00:53.6]} 25.
Kh2 {[%clk 0:00:25.1]} 25... Rb2 {[%clk 0:00:52.5]} 26. Nf3 {[%clk 0:00:11.5]}
26... Rxc2 {[%clk 0:00:38.1]} 27. Nxd4 {[%clk 0:00:11.5]} 27... cxd4 {[%clk
0:00:37.8]} 28. exd5 {[%clk 0:00:09.8]} 28... Rxc1 {[%clk 0:00:36.9]} 29. dxe6
{[%clk 0:00:06.6]} 29... fxe6 {[%clk 0:00:35.2]} 30. Rxc1 {[%clk 0:00:04.6]}
30... Rxc1 {[%clk 0:00:34.8]} 31. Bg4 {[%clk 0:00:05.5]} 31... Kf7 {[%clk
0:00:34.6]} 0-1

[Event "*** SCC Grand Prix: Titled Tuesday Blitz"]
[Site "Chess.com"]
[Date "2020.06.23"]
[Round "3"]
[White "KaterynaLagno"]
[Black "David_Paravyan"]
[Result "1-0"]
[WhiteElo "2692"]
[BlackElo "2914"]
[TimeControl "180+1"]
[EndTime "10:28:15 PDT"]
[Termination "KaterynaLagno won by resignation"]

1. e4 {[%clk 0:03:00.9]} 1... c5 {[%clk 0:02:57.8]} 2. Nf3 {[%clk 0:03:01]} 2...
Nc6 {[%clk 0:02:58.3]} 3. d4 {[%clk 0:02:59.9]} 3... cxd4 {[%clk 0:02:59.2]} 4.
Nxd4 {[%clk 0:03:00.2]} 4... g6 {[%clk 0:02:58.4]} 5. c4 {[%clk 0:02:59.3]} 5...
Nf6 {[%clk 0:02:58.2]} 6. Nc3 {[%clk 0:02:58.2]} 6... d6 {[%clk 0:02:58.8]} 7.
Be2 {[%clk 0:02:57.6]} 7... Nxd4 {[%clk 0:02:58.8]} 8. Qxd4 {[%clk 0:02:57.4]}
8... Bg7 {[%clk 0:02:59.7]} 9. Be3 {[%clk 0:02:56]} 9... O-O {[%clk 0:02:59.8]}
10. Qd2 {[%clk 0:02:56.1]} 10... a5 {[%clk 0:02:59.5]} 11. f3 {[%clk 0:02:46.2]}
11... a4 {[%clk 0:03:00]} 12. O-O {[%clk 0:02:32.3]} 12... Qa5 {[%clk
0:02:57.4]} 13. Rab1 {[%clk 0:02:13.2]} 13... Be6 {[%clk 0:02:47.8]} 14. Rfc1
{[%clk 0:02:07.5]} 14... Rfc8 {[%clk 0:02:44.3]} 15. b4 {[%clk 0:01:56.6]} 15...
axb3 {[%clk 0:02:37.7]} 16. axb3 {[%clk 0:01:56.6]} 16... Qb4 {[%clk 0:02:38.2]}
17. Bd4 {[%clk 0:01:44.6]} 17... h5 {[%clk 0:02:23.4]} 18. Rc2 {[%clk
0:01:36.4]} 18... Kh7 {[%clk 0:02:06.5]} 19. Qd1 {[%clk 0:01:24.1]} 19... Bh6
{[%clk 0:01:43.4]} 20. Na4 {[%clk 0:01:11.3]} 20... Rxa4 {[%clk 0:00:02.6]} 21.
bxa4 {[%clk 0:01:09.8]} 21... Qxa4 {[%clk 0:00:03.5]} 22. Ra1 {[%clk 0:01:08.9]}
22... Qb3 {[%clk 0:00:02.5]} 23. Rb2 {[%clk 0:01:07.6]} 23... Qxd1+ {[%clk
0:00:02.2]} 24. Rxd1 {[%clk 0:01:06.1]} 24... Bxc4 {[%clk 0:00:02.8]} 25. Bxc4
{[%clk 0:01:04.5]} 25... Rxc4 {[%clk 0:00:03.7]} 26. Bxf6 {[%clk 0:01:04.8]}
26... exf6 {[%clk 0:00:04]} 27. Rxb7 {[%clk 0:01:05.4]} 27... Kg8 {[%clk
0:00:03.3]} 28. Rxd6 {[%clk 0:01:03.1]} 28... Be3+ {[%clk 0:00:02.2]} 29. Kf1
{[%clk 0:01:02.5]} 29... Rc2 {[%clk 0:00:03]} 30. Rxf6 {[%clk 0:00:55]} 30...
Rf2+ {[%clk 0:00:03.5]} 31. Ke1 {[%clk 0:00:55.5]} 31... Rxg2 {[%clk 0:00:04.2]}
32. Rfxf7 {[%clk 0:00:54.1]} 32... Bh6 {[%clk 0:00:04.7]} 33. Rfc7 {[%clk
0:00:48.8]} 33... Bf8 {[%clk 0:00:02.1]} 34. Rc8 {[%clk 0:00:48]} 1-0

[Event "*** SCC Grand Prix: Titled Tuesday Blitz"]
[Site "Chess.com"]
[Date "2020.06.23"]
[Round "3"]
[White "Harry_Rakkel"]
[Black "GOGIEFF"]
[Result "0-1"]
[WhiteElo "2564"]
[BlackElo "2889"]
[TimeControl "180+1"]
[EndTime "10:28:16 PDT"]
[Termination "GOGIEFF won by resignation"]

1. e4 {[%clk 0:03:00.9]} 1... c5 {[%clk 0:02:58.9]} 2. Nf3 {[%clk 0:03:00.6]}
2... d6 {[%clk 0:02:59.2]} 3. d4 {[%clk 0:03:00.2]} 3... cxd4 {[%clk 0:02:59.4]}
4. Nxd4 {[%clk 0:03:00.4]} 4... Nf6 {[%clk 0:03:00]} 5. Nc3 {[%clk 0:03:00.1]}
5... a6 {[%clk 0:03:00.6]} 6. Be3 {[%clk 0:02:59.6]} 6... e5 {[%clk 0:02:58.3]}
7. Nb3 {[%clk 0:02:58.8]} 7... Be6 {[%clk 0:02:57.7]} 8. f3 {[%clk 0:02:58.2]}
8... h5 {[%clk 0:02:58.2]} 9. Qd2 {[%clk 0:02:53.9]} 9... Nbd7 {[%clk
0:02:57.8]} 10. O-O-O {[%clk 0:02:53.1]} 10... Rc8 {[%clk 0:02:52.1]} 11. Kb1
{[%clk 0:02:50.1]} 11... Nb6 {[%clk 0:02:44.8]} 12. Qf2 {[%clk 0:02:38.1]} 12...
Nfd7 {[%clk 0:02:40.1]} 13. Qe1 {[%clk 0:02:21.3]} 13... Be7 {[%clk 0:02:34.1]}
14. g3 {[%clk 0:02:17.5]} 14... h4 {[%clk 0:02:02.2]} 15. g4 {[%clk 0:02:11.5]}
15... g5 {[%clk 0:01:58]} 16. h3 {[%clk 0:02:01.7]} 16... O-O {[%clk 0:01:54.6]}
17. Rh2 {[%clk 0:02:01.4]} 17... Qc7 {[%clk 0:01:51.8]} 18. Nc1 {[%clk
0:01:47.7]} 18... f6 {[%clk 0:01:47.6]} 19. a3 {[%clk 0:01:34.1]} 19... Bf7
{[%clk 0:01:47.2]} 20. N1a2 {[%clk 0:01:33.3]} 20... d5 {[%clk 0:01:27.3]} 21.
exd5 {[%clk 0:01:19.3]} 21... Bd6 {[%clk 0:01:25.5]} 22. Bxb6 {[%clk 0:00:54.2]}
22... Qxb6 {[%clk 0:01:21.2]} 23. Na4 {[%clk 0:00:45.4]} 23... Qc7 {[%clk
0:01:13.5]} 24. Qe4 {[%clk 0:00:43.2]} 24... Kg7 {[%clk 0:00:53.6]} 25. Bd3
{[%clk 0:00:42.5]} 25... Rh8 {[%clk 0:00:54.1]} 26. c4 {[%clk 0:00:42.2]} 26...
b5 {[%clk 0:00:52.2]} 27. cxb5 {[%clk 0:00:41.4]} 27... axb5 {[%clk 0:00:53.1]}
28. Bxb5 {[%clk 0:00:40]} 28... Bg6 {[%clk 0:00:52.8]} 29. Bxd7 {[%clk
0:00:34.9]} 29... Bxe4+ {[%clk 0:00:51.4]} 30. fxe4 {[%clk 0:00:34.5]} 30...
Qxd7 {[%clk 0:00:51.8]} 31. Nb6 {[%clk 0:00:33.5]} 31... Qb5 {[%clk 0:00:52]}
32. Nxc8 {[%clk 0:00:32.6]} 32... Rxc8 {[%clk 0:00:52.9]} 33. Ka1 {[%clk
0:00:21.6]} 33... Qa4 {[%clk 0:00:52.2]} 34. Re1 {[%clk 0:00:18.5]} 34... Rc4
{[%clk 0:00:51.6]} 35. Rhe2 {[%clk 0:00:17.4]} 35... Bc5 {[%clk 0:00:50.5]} 36.
Kb1 {[%clk 0:00:13.3]} 36... Qb3 {[%clk 0:00:49.3]} 37. Nc1 {[%clk 0:00:08.5]}
37... Qxh3 {[%clk 0:00:47.2]} 0-1

[Event "*** SCC Grand Prix: Titled Tuesday Blitz"]
[Site "Chess.com"]
[Date "2020.06.23"]
[Round "3"]
[White "NormWeinstein"]
[Black "eCztery"]
[Result "0-1"]
[WhiteElo "2521"]
[BlackElo "2355"]
[TimeControl "180+1"]
[EndTime "10:28:19 PDT"]
[Termination "eCztery won by resignation"]

1. e4 {[%clk 0:02:45]} 1... c5 {[%clk 0:02:56.4]} 2. Nf3 {[%clk 0:02:44.8]} 2...
g6 {[%clk 0:02:54.7]} 3. d4 {[%clk 0:02:44]} 3... cxd4 {[%clk 0:02:55.6]} 4.
Qxd4 {[%clk 0:02:43.7]} 4... Nf6 {[%clk 0:02:55.5]} 5. e5 {[%clk 0:02:44]} 5...
Nc6 {[%clk 0:02:56]} 6. Qa4 {[%clk 0:02:44.1]} 6... Nd5 {[%clk 0:02:56.6]} 7.
Qh4 {[%clk 0:02:44.2]} 7... Bg7 {[%clk 0:02:56]} 8. Bh6 {[%clk 0:02:43.7]} 8...
O-O {[%clk 0:02:53.2]} 9. Bc4 {[%clk 0:02:42.5]} 9... Nb6 {[%clk 0:02:48.8]} 10.
Bxg7 {[%clk 0:02:39]} 10... Kxg7 {[%clk 0:02:47.1]} 11. O-O {[%clk 0:02:35.8]}
11... d5 {[%clk 0:02:31]} 12. Bd3 {[%clk 0:02:28.5]} 12... e6 {[%clk 0:02:27.7]}
13. Qg3 {[%clk 0:02:20]} 13... f6 {[%clk 0:02:20.8]} 14. Nc3 {[%clk 0:02:15]}
14... fxe5 {[%clk 0:02:20.5]} 15. Nxe5 {[%clk 0:02:14.9]} 15... Nxe5 {[%clk
0:02:21.4]} 16. Qxe5+ {[%clk 0:02:14.5]} 16... Qf6 {[%clk 0:02:22]} 17. Rae1
{[%clk 0:02:11.2]} 17... Bd7 {[%clk 0:02:19.2]} 18. f4 {[%clk 0:01:53.3]} 18...
Qxe5 {[%clk 0:02:05.1]} 19. Rxe5 {[%clk 0:01:52]} 19... Rf6 {[%clk 0:01:59.7]}
20. g3 {[%clk 0:01:51.3]} 20... Bc6 {[%clk 0:01:53.6]} 21. Re2 {[%clk
0:01:43.5]} 21... d4 {[%clk 0:01:42.5]} 22. Ne4 {[%clk 0:01:41.5]} 22... Bxe4
{[%clk 0:01:42.3]} 23. Rxe4 {[%clk 0:01:40.6]} 23... Rd8 {[%clk 0:01:36]} 24.
Rfe1 {[%clk 0:01:39]} 24... Rd6 {[%clk 0:01:33.3]} 25. Re5 {[%clk 0:01:28.5]}
25... Nd7 {[%clk 0:01:31]} 26. Ra5 {[%clk 0:01:21.3]} 26... a6 {[%clk
0:01:26.1]} 27. b4 {[%clk 0:01:20.1]} 27... Nb6 {[%clk 0:01:14.3]} 28. Rc5
{[%clk 0:01:14.9]} 28... Nd5 {[%clk 0:01:10.7]} 29. a3 {[%clk 0:01:15.2]} 29...
Rf7 {[%clk 0:01:05.4]} 30. Bc4 {[%clk 0:01:13.7]} 30... Ne3 {[%clk 0:01:03.4]}
31. Bb3 {[%clk 0:01:13.5]} 31... Re7 {[%clk 0:00:43.2]} 32. c3 {[%clk
0:01:12.2]} 32... Nf5 {[%clk 0:00:38.1]} 33. Rd1 {[%clk 0:01:01]} 33... Red7
{[%clk 0:00:35.4]} 34. cxd4 {[%clk 0:00:59.6]} 34... Nxd4 {[%clk 0:00:36.3]} 35.
Rc3 {[%clk 0:00:42.2]} 35... Ne2+ {[%clk 0:00:34.8]} 36. Kf2 {[%clk 0:00:41.3]}
36... Nxc3 {[%clk 0:00:35.7]} 37. Rc1 {[%clk 0:00:40.4]} 37... Rd2+ {[%clk
0:00:31.6]} 38. Kf3 {[%clk 0:00:39.6]} 38... Ne2 {[%clk 0:00:29.9]} 39. Rb1
{[%clk 0:00:33.7]} 39... Nd4+ {[%clk 0:00:25.1]} 0-1